bitfinex-derivatives/quotes_BTCF0:USTF0_20250427
["timestamp","ask_amount","ask_price","bid_price","bid_amount"]
[1745792332858,0.3393272,93987.0,93986.0,0.30859183]
[1745792334161,0.3393272,93987.0,93986.0,0.72899183]
[1745792334458,0.3393272,93987.0,93986.0,0.36819183]
[1745792334660,0.3393272,93987.0,93986.0,0.72899183]
[1745792334967,0.3393272,93987.0,93986.0,0.72999183]
[1745792335462,0.3393272,93987.0,93986.0,0.73099183]
[1745792336454,0.3393272,93987.0,93986.0,0.72999183]
[1745792336763,0.3393272,93987.0,93986.0,0.73099183]
[1745792337452,0.3393272,93987.0,93986.0,0.72999183]
[1745792338374,0.3393272,93987.0,93986.0,0.72899183]
[1745792339467,0.3393272,93987.0,93986.0,0.36819183]
[1745792342057,0.3393272,93987.0,93986.0,0.36919183]
[1745792342564,0.00531,93996.0,93995.0,0.2127091]
[1745792342764,0.00531,93996.0,93995.0,0.6335091]
[1745792342964,0.00531,93996.0,93995.0,0.8398971]
[1745792343164,0.00531,93996.0,93995.0,0.8998971]
[1745792343355,0.0624,94009.0,93995.0,0.8998971]
[1745792343356,0.2126872,94005.0,94004.0,0.2126888]
[1745792343559,0.2126872,94005.0,94004.0,0.7932088]
[1745792343968,0.0609,94006.0,94004.0,0.64172]
[1745792344159,0.0609,94006.0,94005.0,0.2126865]
[1745792344374,0.2735842,94006.0,94005.0,0.4932865]
[1745792344561,0.2735842,94006.0,94005.0,0.5544865]
[1745792345263,0.2755842,94006.0,94005.0,0.5544865]
[1745792345460,0.2775842,94006.0,94005.0,0.5544865]
[1745792346266,0.0649,94006.0,94005.0,0.5544865]
[1745792347263,0.0649,94006.0,94005.0,0.4938865]
[1745792347566,0.2775842,94006.0,94005.0,0.5546865]
[1745792347959,0.0649,94006.0,94005.0,0.5546865]
[1745792348965,0.2775842,94006.0,94005.0,0.5546865]
[1745792349169,0.25265686,94006.0,94005.0,0.4938865]
[1745792350868,0.25265686,94006.0,94005.0,0.8546865]
[1745792357462,0.25265686,94006.0,94005.0,0.7334865]
[1745792357868,0.25265686,94006.0,94005.0,0.16]
[1745792361470,0.25265686,94006.0,94005.0,0.7334865]
[1745792361671,0.03997266,94006.0,94005.0,0.7334865]
[1745792362168,0.25265686,94006.0,94005.0,0.8024865]
[1745792362371,0.25265686,94006.0,94005.0,0.8649865]
[1745792364667,0.03997266,94006.0,94005.0,0.8649865]
[1745792365080,0.25265686,94006.0,94005.0,0.8649865]
[1745792365474,0.03997266,94006.0,94005.0,0.8649865]
[1745792366875,0.03997266,94006.0,94005.0,0.5041865]
[1745792367265,0.10057266,94006.0,94005.0,0.5041865]
[1745792369674,0.31325686,94006.0,94005.0,0.5041865]
[1745792370874,0.10057266,94006.0,94005.0,0.5041865]
[1745792371274,0.31325686,94006.0,94005.0,0.5041865]
[1745792380778,0.10057266,94006.0,94005.0,0.5041865]
[1745792380980,0.31325686,94006.0,94005.0,0.52000774]
[1745792381281,0.31325686,94006.0,94005.0,0.52000762]
[1745792387391,0.31325686,94006.0,94005.0,0.52060507]
[1745792388384,0.31325686,94006.0,94005.0,0.24541857]
[1745792388683,0.31325686,94006.0,94005.0,0.17641857]
[1745792389073,0.31325686,94006.0,94005.0,0.01641857]
[1745792393390,0.10057266,94006.0,94005.0,0.22910507]
[1745792393590,0.10057266,94006.0,94005.0,0.59990507]
[1745792393889,0.03997266,94006.0,94005.0,0.59990507]
[1745792394289,0.25265686,94006.0,94005.0,0.66870507]
[1745792395477,0.25265686,94006.0,94005.0,0.30790507]
[1745792397387,0.25265686,94006.0,94005.0,0.2914865]
[1745792397593,0.25265686,94006.0,94005.0,0.30796526]
[1745792398003,0.03997266,94006.0,94005.0,0.30796526]
[1745792398187,0.25265686,94006.0,94005.0,0.30796526]
[1745792398895,0.25265686,94006.0,94005.0,0.30798431]
[1745792399594,0.25265686,94006.0,94005.0,0.30810472]
[1745792400794,0.03997266,94006.0,94005.0,0.30810472]
[1745792401196,0.25265686,94006.0,94005.0,0.3081047]
[1745792402995,0.25265686,94006.0,94005.0,0.30797722]
[1745792403681,0.03997266,94006.0,94005.0,0.30797722]
[1745792404491,0.004,94006.0,94005.0,0.30797722]
[1745792404699,0.004,94006.0,94005.0,0.40797722]
[1745792406789,0.004,94006.0,94005.0,0.40767504]
[1745792410900,0.004,94006.0,94005.0,0.40760942]
[1745792411702,0.004,94006.0,94005.0,0.33880942]
[1745792411902,0.004,94006.0,94005.0,0.40760942]
[1745792414003,0.004,94006.0,94005.0,0.33880942]
[1745792414203,0.004,94006.0,94005.0,0.40760942]
[1745792414409,0.2166842,94006.0,94005.0,0.19492292]
[1745792414703,0.2166842,94006.0,94005.0,0.08612292]
[1745792414704,0.5774842,94006.0,94005.0,0.08612292]
[1745792414890,0.5774842,94006.0,94005.0,0.15492292]
[1745792415505,0.5774842,94006.0,94005.0,0.08492292]
[1745792415893,1.4657402,94006.0,94005.0,1e-08]
[1745792416093,0.9338602,94006.0,94005.0,1e-08]
[1745792416496,0.2126956,94001.0,94000.0,0.16186061]
[1745792417399,0.3361956,94001.0,94000.0,0.16186061]
[1745792417609,0.3371956,94001.0,94000.0,0.16186061]
[1745792418897,0.3381956,94001.0,94000.0,0.16186061]
[1745792420092,0.2126978,94000.0,93999.0,0.0688]
[1745792420302,0.2712978,94000.0,93999.0,0.0688]
[1745792420498,0.3909978,94000.0,93999.0,0.0688]
[1745792421295,0.3919978,94000.0,93999.0,0.0688]
[1745792422204,0.3919978,94000.0,93999.0,0.2815001]
[1745792422403,0.3919978,94000.0,93999.0,0.0688]
[1745792422607,0.3919978,94000.0,93999.0,0.2815001]
[1745792422800,0.3929978,94000.0,93999.0,0.0688]
[1745792423505,0.3929978,94000.0,93995.0,0.0531772]
[1745792423506,0.2127069,93996.0,93995.0,0.0688]
[1745792423693,0.18777566,93996.0,93995.0,0.0888]
[1745792424309,0.30267566,93996.0,93995.0,0.0888]
[1745792424694,0.66347566,93996.0,93995.0,0.0888]
[1745792425398,0.66347566,93996.0,93995.0,0.0688]
[1745792427903,0.66347566,93996.0,93995.0,0.0848351]
[1745792432310,0.66347566,93996.0,93970.0,0.00787272]
[1745792432311,0.2127544,93975.0,93970.0,0.00787272]
[1745792432501,0.5735544,93975.0,93970.0,0.00787272]
[1745792432710,0.2127635,93971.0,93970.0,0.00787272]
[1745792433007,0.0531901,93973.0,93969.0,0.16908724]
[1745792433008,0.2127657,93970.0,93969.0,0.16908724]
[1745792433213,0.3221657,93970.0,93969.0,0.16908724]
[1745792433415,0.2127703,93968.0,93967.0,0.16908724]
[1745792434010,0.2671703,93968.0,93967.0,0.16908724]
[1745792434820,0.2671703,93968.0,93967.0,0.17724067]
[1745792435408,0.2681703,93968.0,93967.0,0.17724067]
[1745792435609,0.2691703,93968.0,93967.0,0.17724067]
[1745792437728,0.6794703,93968.0,93967.0,0.17724067]
[1745792438623,0.6794703,93968.0,93967.0,0.00815343]
[1745792438924,0.2127793,93964.0,93963.0,0.2127809]
[1745792439121,0.5735793,93964.0,93963.0,0.2127809]
[1745792439614,0.5735793,93964.0,93963.0,0.22056508]
[1745792439810,0.6290793,93964.0,93963.0,0.22056508]
[1745792440015,0.6290793,93964.0,93963.0,0.22156508]
[1745792441623,0.6290793,93964.0,93963.0,0.00878418]
[1745792444623,0.6290793,93964.0,93963.0,0.06588418]
[1745792446327,0.6290793,93964.0,93963.0,0.27866578]
[1745792446527,0.6290793,93964.0,93963.0,0.06588418]
[1745792446729,0.6290793,93964.0,93963.0,0.27866578]
[1745792447229,0.6290793,93964.0,93963.0,0.06588418]
[1745792448124,0.8266,93964.0,93950.0,0.00106439]
[1745792448335,0.2128155,93948.0,93931.0,0.1663]
[1745792448632,0.5736155,93948.0,93947.0,1e-07]
[1745792448829,0.2128745,93922.0,93921.0,0.17]
[1745792449016,0.2128745,93922.0,93921.0,0.5228767]
[1745792449223,0.2128745,93922.0,93921.0,0.31]
[1745792449532,0.2114595,93934.0,93933.0,0.2128444]
[1745792449739,0.2114595,93934.0,93933.0,0.04]
[1745792449740,0.3608,93934.0,93933.0,0.04]
[1745792449935,0.6268593,93934.0,93933.0,0.04]
[1745792450115,0.2138745,93922.0,93921.0,0.20105762]
[1745792450321,0.2138745,93922.0,93921.0,0.34235762]
[1745792450627,0.2138745,93922.0,93921.0,0.55523432]
[1745792450930,0.2138745,93922.0,93921.0,0.48643432]
[1745792451231,0.2148745,93922.0,93921.0,0.49043432]
[1745792451429,0.2148745,93922.0,93921.0,0.50638464]
[1745792452029,0.2138745,93922.0,93921.0,0.50138464]
[1745792452331,0.2128745,93922.0,93921.0,0.23200794]
[1745792452634,0.2687745,93922.0,93921.0,0.23200794]
[1745792453025,0.2697745,93922.0,93921.0,0.23500794]
[1745792453227,0.2697745,93922.0,93921.0,0.16000327]
[1745792453442,0.2697745,93922.0,93921.0,0.14405295]
[1745792454324,0.2697745,93922.0,93921.0,0.01405295]
[1745792454833,0.2128835,93918.0,93917.0,2e-08]
[1745792455023,1.5163635,93918.0,93917.0,3e-08]
[1745792455335,0.2129221,93901.0,93900.0,0.105]
[1745792455535,0.5737221,93901.0,93900.0,0.105]
[1745792455731,1.4513181,93901.0,93900.0,0.11291558]
[1745792456028,1.5534181,93901.0,93900.0,0.11291558]
[1745792456726,1.5584181,93901.0,93900.0,0.11391558]
[1745792457230,1.6784181,93901.0,93900.0,0.11391558]
[1745792457733,2.2108981,93901.0,93900.0,0.11391558]
[1745792458123,1.5564181,93901.0,93900.0,0.11391558]
[1745792458325,1.5614181,93901.0,93900.0,0.11491558]
[1745792458530,1.5584181,93901.0,93900.0,0.11391558]
[1745792458733,1.5654181,93901.0,93900.0,0.11491558]
[1745792458929,1.5604181,93901.0,93900.0,0.11391558]
[1745792459138,1.5654181,93901.0,93900.0,0.11491558]
[1745792459631,1.5584181,93901.0,93900.0,0.11391558]
[1745792459830,1.5654181,93901.0,93900.0,0.11491558]
[1745792461137,0.2129425,93892.0,93891.0,0.0015974]
[1745792461432,0.7711,93892.0,93865.0,0.0472]
[1745792461635,0.7711,93892.0,93866.0,0.0425]
[1745792461636,0.5737515,93888.0,93866.0,0.0425]
[1745792461824,0.5737515,93888.0,93887.0,2e-08]
[1745792462032,0.68026351,93888.0,93887.0,2e-08]
[1745792462232,0.68026351,93888.0,93887.0,0.0078597]
[1745792462426,0.68026351,93888.0,93887.0,2e-08]
[1745792462821,0.68326351,93888.0,93887.0,0.00100002]
[1745792463327,0.68626351,93888.0,93887.0,0.00200002]
[1745792464330,0.9900515,93888.0,93887.0,0.00990722]
[1745792464530,0.9900515,93888.0,93887.0,0.00200002]
[1745792466029,0.9900515,93888.0,93887.0,0.00196002]
[1745792466230,0.9900515,93888.0,93887.0,0.04866002]
[1745792466627,0.9900515,93888.0,93887.0,0.00196002]
[1745792467636,0.9900515,93888.0,93887.0,0.01003021]
[1745792469526,1.0805515,93888.0,93887.0,0.01003021]
[1745792470148,0.6292515,93888.0,93887.0,0.22298401]
[1745792470529,0.6292515,93888.0,93887.0,0.23298401]
[1745792473335,0.4163,93888.0,93887.0,0.23298401]
[1745792473540,0.6292515,93888.0,93887.0,0.23298401]
[1745792474823,0.6292515,93888.0,93887.0,0.02003021]
[1745792475028,0.9900515,93888.0,93887.0,0.02003021]
[1745792475538,0.9900515,93888.0,93887.0,0.01003021]
[1745792475835,0.5797515,93888.0,93887.0,0.01003021]
[1745792477737,0.73236351,93888.0,93887.0,0.01003021]
[1745792478530,0.5797515,93888.0,93887.0,0.22298401]
[1745792478734,0.5797515,93888.0,93887.0,0.01003021]
[1745792478934,0.6225515,93888.0,93887.0,0.01003021]
[1745792479344,0.3638,93888.0,93887.0,1.11204601]
[1745792479642,0.00532,93892.0,93891.0,0.2129447]
[1745792479844,0.3608,93910.0,93900.0,0.2129187]
[1745792480034,0.2129198,93902.0,93901.0,0.0447]
[1745792480235,0.2129198,93902.0,93901.0,0.0902]
[1745792480631,0.2129198,93902.0,93901.0,0.3031221]
[1745792480830,0.32026988,93902.0,93901.0,0.3031221]
[1745792481443,0.32026988,93902.0,93901.0,0.0902]
[1745792481638,0.32626988,93902.0,93901.0,0.0912]
[1745792482339,0.33126988,93902.0,93901.0,0.0922]
[1745792483035,0.33126988,93902.0,93901.0,0.3051221]
[1745792483937,0.33126988,93902.0,93901.0,0.3151221]
[1745792484635,0.2239198,93902.0,93901.0,0.3151221]
[1745792488344,0.011,93902.0,93901.0,0.3151221]
[1745792488738,0.011,93902.0,93901.0,0.4216181]
[1745792490049,0.001,93902.0,93901.0,0.4246181]
[1745792490645,0.08554216,93906.0,93905.0,0.212913]
[1745792490950,0.08022216,93906.0,93905.0,0.302913]
[1745792491844,0.08022216,93906.0,93905.0,0.380813]
[1745792492239,0.00532,93910.0,93906.0,0.2129107]
[1745792492439,0.6232085,93907.0,93906.0,0.7406107]
[1745792492642,0.4103,93907.0,93906.0,0.7406107]
[1745792493450,0.2129064,93908.0,93907.0,0.2129062]
[1745792493649,0.2129064,93908.0,93907.0,0.2529062]
[1745792493948,0.2129064,93908.0,93907.0,0.3320062]
[1745792495247,0.2129064,93908.0,93907.0,0.3330062]
[1745792497351,0.037,93909.0,93908.0,0.2129062]
[1745792497548,0.2661258,93911.0,93910.0,0.2129017]
[1745792497750,0.2661258,93911.0,93910.0,0.2429017]
[1745792498140,0.0391,93919.0,93916.0,0.2128881]
[1745792498344,0.2180853,93918.0,93916.0,0.5836881]
[1745792498752,0.0052,93918.0,93917.0,0.2128858]
[1745792498956,0.0052,93918.0,93917.0,0.2611858]
[1745792499250,0.0052,93918.0,93917.0,0.3002858]
[1745792499751,0.2180835,93918.0,93917.0,0.3002858]
[1745792499950,0.0052,93918.0,93917.0,0.3002858]
[1745792500153,0.0052,93918.0,93917.0,0.40676179]
[1745792500945,0.2180835,93918.0,93917.0,0.40676179]
[1745792501156,0.2190835,93918.0,93917.0,0.40676179]
[1745792502349,0.0062,93918.0,93917.0,0.40676179]
[1745792503544,0.10865008,93941.0,93917.0,0.0774]
[1745792503746,0.10865008,93941.0,93940.0,0.9344337]
[1745792503747,0.0013,93941.0,93940.0,0.9344337]
[1745792503948,0.0013,93941.0,93940.0,1.1432737]
[1745792504159,0.0802484,93947.0,93940.0,1.1432737]
[1745792504160,0.08020841,93947.0,93946.0,0.2128201]
[1745792504452,0.08020841,93947.0,93946.0,0.5316601]
[1745792504653,0.08020841,93947.0,93946.0,0.6381041]
[1745792504852,0.08020841,93947.0,93946.0,0.64621333]
[1745792505051,0.08020841,93947.0,93946.0,0.72381333]
[1745792505462,0.08120841,93947.0,93946.0,0.72381333]
[1745792506358,0.10130167,93952.0,93951.0,0.2128087]
[1745792506661,0.10130167,93952.0,93951.0,0.8236087]
[1745792506960,0.10130167,93952.0,93951.0,0.9300447]
[1745792507454,0.10330167,93952.0,93951.0,0.9676447]
[1745792507652,0.10530167,93952.0,93951.0,0.9676447]
[1745792508458,0.004,93952.0,93951.0,0.9676447]
[1745792510965,0.0792,93964.0,93963.0,0.2127816]
[1745792511162,0.0792,93964.0,93963.0,0.7023816]
[1745792511861,0.0792,93964.0,93963.0,0.7411816]
[1745792512053,0.0842,93964.0,93963.0,0.7421816]
[1745792513061,0.0882,93964.0,93963.0,0.7431816]
[1745792514255,0.3009793,93964.0,93963.0,0.7431816]
[1745792514565,0.0882,93964.0,93963.0,0.7431816]
[1745792514765,0.0882,93964.0,93963.0,0.77519184]
[1745792516955,0.0882,93964.0,93963.0,0.73639184]
[1745792519969,0.0013,93971.0,93970.0,0.2127657]
[1745792520170,0.0013,93971.0,93970.0,0.7135657]
[1745792520469,1e-08,93971.0,93970.0,0.9299817]
[1745792521266,0.00500001,93971.0,93970.0,0.9997817]
[1745792521681,0.01000001,93971.0,93970.0,1.0007817]
[1745792521870,0.22276351,93971.0,93970.0,0.6128]
[1745792522078,0.47276351,93971.0,93970.0,0.002]
[1745792522268,0.2128065,93952.0,93951.0,0.3608]
[1745792523673,0.2918065,93952.0,93951.0,0.3618]
[1745792523969,0.2928065,93952.0,93951.0,0.3618]
[1745792524368,0.2128314,93941.0,93940.0,0.0688]
[1745792524561,0.2128405,93937.0,93936.0,0.21642944]
[1745792524769,0.2128563,93930.0,93918.0,0.0688]
[1745792525079,0.2128563,93930.0,93929.0,0.14966608]
[1745792525271,1.1016303,93930.0,93929.0,0.14966608]
[1745792525869,0.8516303,93930.0,93929.0,0.14966608]
[1745792526064,0.2128563,93930.0,93929.0,0.37043014]
[1745792526288,0.0372,93936.0,93931.0,0.0532131]
[1745792526573,0.2128476,93934.0,93933.0,0.212845]
[1745792526870,0.2128476,93934.0,93933.0,0.222845]
[1745792527471,0.0372,93936.0,93935.0,0.212845]
[1745792527667,0.0532046,93947.0,93946.0,0.2128111]
[1745792527879,0.2660148,93953.0,93952.0,0.2128052]
[1745792528068,0.2660148,93953.0,93952.0,0.2928052]
[1745792528776,0.0396,93958.0,93957.0,0.2127952]
[1745792529076,0.0396,93958.0,93957.0,0.2527952]
[1745792529774,0.2523929,93958.0,93957.0,0.3265952]
[1745792530166,0.2533929,93958.0,93957.0,0.3265952]
[1745792530578,0.2533929,93958.0,93957.0,0.2894952]
[1745792530775,0.2533929,93958.0,93957.0,0.04]
[1745792531668,0.2543929,93958.0,93957.0,0.04]
[1745792531977,0.002,93958.0,93957.0,0.2527952]
[1745792532371,0.21276351,93971.0,93966.0,0.0531933]
[1745792532570,0.21276351,93971.0,93970.0,0.5735657]
[1745792532772,0.21276351,93971.0,93970.0,0.6823657]
[1745792533476,0.21676351,93971.0,93970.0,0.6823657]
[1745792533882,0.25426351,93971.0,93970.0,0.4696]
[1745792534178,0.25826351,93971.0,93970.0,0.4696]
[1745792534378,0.25826351,93971.0,93970.0,0.3215657]
[1745792534576,0.61906351,93971.0,93970.0,0.3215657]
[1745792534776,0.61906351,93971.0,93970.0,0.1088]
[1745792536082,0.25826351,93971.0,93970.0,0.3215657]
[1745792536581,0.25826351,93971.0,93970.0,0.4006657]
[1745792536786,0.00800001,93971.0,93970.0,0.4006657]
[1745792537679,0.22076351,93971.0,93970.0,0.4006657]
[1745792538325,0.00800001,93971.0,93970.0,0.4006657]
[1745792538677,0.0052,93978.0,93977.0,0.2127499]
[1745792538976,0.2179476,93978.0,93977.0,0.2227499]
[1745792539177,0.2179476,93978.0,93977.0,0.2625499]
[1745792539570,0.2179476,93978.0,93977.0,0.0498]
[1745792539776,0.2179476,93978.0,93977.0,0.0508]
[1745792539777,0.2239476,93978.0,93977.0,0.0508]
[1745792540179,0.0112,93978.0,93977.0,0.3323499]
[1745792540416,0.0152,93978.0,93977.0,0.3323499]
[1745792540687,0.0152,93978.0,93977.0,0.4323499]
[1745792542170,0.2279476,93978.0,93977.0,0.4323499]
[1745792542976,0.2279476,93978.0,93977.0,0.4401578]
[1745792547981,0.0152,93978.0,93977.0,0.4401578]
[1745792548484,0.00531,93986.0,93985.0,0.2127318]
[1745792548784,0.1531753,94000.0,93997.0,0.2658758]
[1745792548993,0.2127001,93999.0,93998.0,0.3210001]
[1745792549290,0.2127001,93999.0,93998.0,0.7890001]
[1745792550290,0.007,93999.0,93998.0,0.7900001]
[1745792550496,0.013,93999.0,93998.0,0.7900001]
[1745792551787,0.006,93999.0,93998.0,0.7890001]
[1745792552098,0.006,93999.0,93998.0,0.7900001]
[1745792553196,0.1,94000.0,93999.0,0.2127001]
[1745792553386,0.1,94000.0,93999.0,0.3527001]
[1745792553589,0.1,94000.0,93999.0,0.4300001]
[1745792554895,0.101,94000.0,93999.0,0.4300001]
[1745792561907,0.101,94000.0,93999.0,0.7908001]
[1745792564313,0.07607275,94000.0,93999.0,0.7908001]
[1745792565918,0.28877055,94000.0,93999.0,0.7908001]
[1745792566115,0.07607275,94000.0,93999.0,0.7908001]
[1745792566318,0.11327275,94000.0,93999.0,0.7908001]
[1745792570012,0.07607275,94000.0,93999.0,0.7908001]
[1745792571008,0.11337275,94000.0,93999.0,0.7908001]
[1745792572122,0.15157275,94000.0,93999.0,0.7908001]
[1745792572909,0.36427055,94000.0,93999.0,0.7908001]
[1745792573115,0.15157275,94000.0,93999.0,0.7908001]
[1745792575216,0.15157275,94000.0,93999.0,0.8595601]
[1745792576111,0.11337275,94000.0,93999.0,0.8595601]
[1745792576819,0.15257275,94000.0,93999.0,0.8595601]
[1745792580923,0.32607055,94000.0,93999.0,0.58956]
[1745792581118,0.39967055,94000.0,93999.0,0.58956]
[1745792581321,0.15137275,94000.0,93999.0,0.8022601]
[1745792581521,0.36407055,94000.0,93999.0,0.58956]
[1745792582127,0.36407055,94000.0,93999.0,0.8022601]
[1745792582326,0.36407055,94000.0,93999.0,0.58956]
[1745792583926,0.72487055,94000.0,93999.0,0.16]
[1745792584233,0.84487055,94000.0,93999.0,0.22876]
[1745792584431,0.48407055,94000.0,93999.0,0.22876]
[1745792586234,0.36407055,94000.0,93999.0,0.22876]
[1745792591023,0.36407055,94000.0,93999.0,0.4414601]
[1745792591232,0.36407055,94000.0,93999.0,0.22876]
[1745792592229,0.36407055,94000.0,93999.0,0.16]
[1745792592422,0.36407055,94000.0,93999.0,0.22876]
[1745792592834,0.36407055,94000.0,93999.0,0.4414601]
[1745792593237,0.36407055,94000.0,93999.0,0.22876]
[1745792598938,0.07607275,94000.0,93999.0,0.4114601]
[1745792599140,0.28877055,94000.0,93999.0,0.6282601]
[1745792600042,0.28777055,94000.0,93999.0,0.6342601]
[1745792600244,0.28777055,94000.0,93999.0,0.3528]
[1745792600544,0.28777055,94000.0,93999.0,0.2498]
[1745792600746,0.36647055,94000.0,93999.0,0.31856]
[1745792601047,0.36647055,94000.0,93999.0,0.28056]
[1745792601544,0.36647055,94000.0,93999.0,0.2118]
[1745792601739,0.36647055,94000.0,93999.0,0.28056]
[1745792602341,0.36647055,94000.0,93999.0,0.27956]
[1745792602545,0.36647055,94000.0,93999.0,0.27856]
[1745792603041,0.36647055,94000.0,93999.0,0.27556]
[1745792603242,0.36647055,94000.0,93999.0,0.4892601]
[1745792603835,0.36647055,94000.0,93999.0,0.2078]
[1745792604036,0.36647055,94000.0,93999.0,0.27656]
[1745792605247,0.36647055,94000.0,93999.0,0.2078]
[1745792605445,0.36647055,94000.0,93999.0,0.1701]
[1745792606342,0.77777055,94000.0,93999.0,0.001]
[1745792606546,0.2127386,93982.0,93980.0,0.00159601]
[1745792606741,0.2127499,93977.0,93976.0,0.19517612]
[1745792606939,0.6230499,93977.0,93976.0,0.13621532]
[1745792607148,1.6315079,93977.0,93976.0,0.13621532]
[1745792607347,1.3815079,93977.0,93976.0,0.13621532]
[1745792608047,0.8494579,93977.0,93976.0,0.13621532]
[1745792609247,0.8494579,93977.0,93976.0,0.14414939]
[1745792609457,0.8494579,93977.0,93976.0,9e-08]
[1745792609653,0.2127657,93970.0,93963.0,0.0823]
[1745792609949,0.5735657,93970.0,93963.0,0.0823]
[1745792610150,0.7999817,93970.0,93963.0,0.0823]
[1745792610542,0.8790817,93970.0,93963.0,0.0823]
[1745792610749,1.2893817,93970.0,93969.0,0.27130888]
[1745792611143,1.2893817,93970.0,93969.0,0.27934736]
[1745792611555,1.2893817,93970.0,93969.0,0.28034736]
[1745792614244,1.1829657,93970.0,93969.0,0.28034736]
[1745792615956,1.1829657,93970.0,93969.0,0.01103848]
[1745792616153,1.0629657,93970.0,93969.0,0.01103848]
[1745792622257,0.2127793,93964.0,93963.0,0.1216]
[1745792622450,0.6230793,93964.0,93963.0,0.1216]
[1745792623352,0.6230793,93964.0,93963.0,0.1246]
[1745792623846,0.6230793,93964.0,93963.0,0.34550934]
[1745792624053,0.4103,93964.0,93963.0,0.34550934]
[1745792624360,0.6230793,93964.0,93963.0,0.35550934]
[1745792624850,0.6230793,93964.0,93963.0,0.35750934]
[1745792628461,0.2127793,93964.0,93963.0,0.35750934]
[1745792630367,0.2127731,93967.0,93966.0,0.2127725]
[1745792630564,0.2127731,93967.0,93966.0,0.2427725]
[1745792630864,0.2127731,93967.0,93966.0,0.3267725]
[1745792631364,0.2127731,93967.0,93966.0,0.3287725]
[1745792632270,0.2127731,93967.0,93966.0,0.3297725]
[1745792633860,0.2127731,93967.0,93966.0,0.3287725]
[1745792634162,0.2127731,93967.0,93966.0,0.3287748]
[1745792637361,0.2127731,93967.0,93966.0,0.3975348]
[1745792645770,0.2127731,93967.0,93966.0,0.7583348]
[1745792645971,0.75628022,93980.0,93979.0,0.2127453]
[1745792646179,0.70309382,93980.0,93979.0,0.2627453]
[1745792646375,0.70309382,93980.0,93979.0,0.05]
[1745792646881,0.70309382,93980.0,93979.0,0.1341]
[1745792647379,0.74259382,93980.0,93979.0,0.1341]
[1745792647585,0.78409382,93980.0,93979.0,0.1341]
[1745792648167,0.7040504,93980.0,93979.0,0.1341]
[1745792648579,0.7040504,93980.0,93979.0,0.1351]
[1745792648874,0.7040504,93980.0,93979.0,0.3488453]
[1745792649079,0.7040504,93980.0,93979.0,0.1361]
[1745792650180,0.7040504,93980.0,93979.0,0.16067115]
[1745792650875,0.7040504,93980.0,93979.0,0.37341645]
[1745792651271,0.6625504,93980.0,93979.0,0.37341645]
[1745792651780,0.2522504,93980.0,93979.0,0.37341645]
[1745792656276,0.2522504,93980.0,93979.0,0.16067115]
[1745792657290,0.2522504,93980.0,93979.0,0.37341645]
[1745792664191,0.2522504,93980.0,93979.0,0.16067115]
[1745792665793,0.2522504,93980.0,93979.0,0.37341645]
[1745792674495,0.2522504,93980.0,93979.0,0.16067115]
[1745792674690,0.2522504,93980.0,93979.0,0.11757115]
[1745792674896,0.2522504,93980.0,93979.0,0.06857115]
[1745792675599,0.2522504,93980.0,93979.0,0.06757115]
[1745792676003,0.2522504,93980.0,93979.0,0.002]
[1745792676201,0.2127725,93967.0,93966.0,0.3608]
[1745792676588,0.2127725,93967.0,93964.0,0.0461]
[1745792676589,0.212777,93965.0,93964.0,0.0461]
[1745792676986,0.212777,93965.0,93964.0,0.06769527]
[1745792677192,0.298877,93965.0,93964.0,0.06769527]
[1745792677399,0.298877,93965.0,93964.0,0.28047457]
[1745792677587,0.298877,93965.0,93964.0,0.06769527]
[1745792678296,0.709177,93965.0,93964.0,0.28047457]
[1745792678497,0.709177,93965.0,93964.0,0.10959527]
[1745792678795,0.709177,93965.0,93964.0,0.11159527]
[1745792678998,0.623077,93965.0,93964.0,0.32437457]
[1745792679186,0.623077,93965.0,93964.0,0.33437457]
[1745792679591,0.623077,93965.0,93964.0,0.33537457]
[1745792679889,0.623077,93965.0,93964.0,0.69617457]
[1745792683200,0.623077,93965.0,93964.0,0.48339527]
[1745792683890,0.623077,93965.0,93964.0,0.69617457]
[1745792701322,0.4103,93965.0,93964.0,0.69617457]
[1745792701508,0.4103,93965.0,93964.0,0.79617457]
[1745792701708,0.00532,93970.0,93969.0,0.212768]
[1745792701925,0.0531891,93974.0,93970.0,0.053191]
[1745792701926,0.0531892,93974.0,93970.0,0.053191]
[1745792702142,0.2127635,93972.0,93971.0,0.2127628]
[1745792702309,0.2127635,93972.0,93971.0,0.2427628]
[1745792702510,0.2127635,93972.0,93971.0,0.3327628]
[1745792702820,0.2556635,93972.0,93971.0,0.3327628]
[1745792704820,0.2127635,93972.0,93971.0,0.3327628]
[1745792705622,0.2127635,93972.0,93971.0,0.3337628]
[1745792705806,0.2587635,93972.0,93971.0,0.3337628]
[1745792706217,0.2587635,93972.0,93971.0,0.3347628]
[1745792707420,0.046,93972.0,93971.0,0.3347628]
[1745792708824,0.2587612,93972.0,93971.0,0.3347628]
[1745792709429,0.2587612,93972.0,93971.0,0.4034828]
[1745792710021,0.08004342,93975.0,93972.0,0.0531898]
[1745792710216,0.08004342,93975.0,93974.0,0.5735567]
[1745792710411,0.29279782,93975.0,93974.0,0.4908]
[1745792710623,0.29279782,93975.0,93974.0,0.5792]
[1745792710923,0.29279782,93975.0,93974.0,0.0442]
[1745792711426,0.37779782,93975.0,93974.0,0.0442]
[1745792712019,0.37779782,93975.0,93974.0,0.0452]
[1745792712829,0.37879782,93975.0,93974.0,0.2569567]
[1745792713628,0.2987544,93975.0,93974.0,0.3007567]
[1745792715435,0.00532,93979.0,93978.0,0.2127476]
[1745792715632,0.4103,93983.0,93981.0,0.2127386]
[1745792715821,0.2127398,93982.0,93981.0,0.7035386]
[1745792716130,0.0437,93982.0,93981.0,0.7035386]
[1745792716318,0.2127355,93984.0,93983.0,0.2127363]
[1745792716524,0.2552355,93984.0,93983.0,0.2327363]
[1745792718427,0.2552355,93984.0,93983.0,0.08868]
[1745792718626,0.2552355,93984.0,93983.0,0.09068]
[1745792719130,0.2552355,93984.0,93983.0,0.3064163]
[1745792719329,0.2552355,93984.0,93983.0,0.3044163]
[1745792719528,0.2552355,93984.0,93983.0,0.3024163]
[1745792719727,0.2552355,93984.0,93983.0,0.3044163]
[1745792720837,0.2552355,93984.0,93983.0,0.2357363]
[1745792721136,0.2552355,93984.0,93983.0,0.3054163]
[1745792721835,0.2552355,93984.0,93983.0,0.3034163]
[1745792722035,0.2552355,93984.0,93983.0,0.2367363]
[1745792722337,0.2127355,93984.0,93983.0,0.3054163]
[1745792722834,0.2127355,93984.0,93983.0,0.32149415]
[1745792723645,0.2180356,93988.0,93987.0,0.2127272]
[1745792723939,0.2127256,93988.0,93987.0,0.23880505]
[1745792725533,0.2127256,93988.0,93987.0,0.23980505]
[1745792725934,0.36611,93992.0,93991.0,0.2127182]